[Event "Early-Titled-Tuesday-Blitz-April-16-2024"]
[Site "Chess.com"]
[Date "2024.04.16"]
[Round "2"]
[White "EddieUrquhart"]
[Black "Navyblue1"]
[Result "1-0"]
[WhiteElo "2512"]
[BlackElo "2276"]
[TimeControl "180+1"]
[EndTime "8:16:58 PDT"]
[Termination "EddieUrquhart won by resignation"]

1. e4 {[%clk 0:03:00.9]} 1... c5 {[%clk 0:02:59.2]} 2. Nc3 {[%clk 0:03:00.5]}
2... d6 {[%clk 0:02:57.8]} 3. d4 {[%clk 0:02:59.9]} 3... cxd4 {[%clk 0:02:55.6]}
4. Qxd4 {[%clk 0:03:00.8]} 4... a6 {[%clk 0:02:39.1]} 5. b3 {[%clk 0:02:59.5]}
5... Nc6 {[%clk 0:02:38]} 6. Qd2 {[%clk 0:02:58.7]} 6... g6 {[%clk 0:02:37.7]}
7. Bb2 {[%clk 0:02:58.9]} 7... Bg7 {[%clk 0:02:38.1]} 8. O-O-O {[%clk 0:02:59]}
8... Nf6 {[%clk 0:02:26.3]} 9. Kb1 {[%clk 0:02:58.9]} 9... O-O {[%clk
0:02:22.2]} 10. f4 {[%clk 0:02:58.2]} 10... Qa5 {[%clk 0:02:13.8]} 11. Nf3
{[%clk 0:02:51.1]} 11... e5 {[%clk 0:01:28.4]} 12. h4 {[%clk 0:02:05.6]} 12...
exf4 {[%clk 0:01:16.7]} 13. Qxf4 {[%clk 0:02:01.9]} 13... Ng4 {[%clk 0:00:58.6]}
14. Qd2 {[%clk 0:01:42.9]} 14... h5 {[%clk 0:00:20.6]} 15. Ng5 {[%clk
0:01:33.4]} 15... Nce5 {[%clk 0:00:14.2]} 16. Nd5 {[%clk 0:00:49.7]} 16... Qxd2
{[%clk 0:00:12.1]} 17. Rxd2 {[%clk 0:00:50.6]} 17... Be6 {[%clk 0:00:10]} 18.
Be2 {[%clk 0:00:43.8]} 18... Bxd5 {[%clk 0:00:07]} 19. Rxd5 {[%clk 0:00:43.4]}
19... Rad8 {[%clk 0:00:06.2]} 20. Rhd1 {[%clk 0:00:43]} 20... Rfe8 {[%clk
0:00:04.6]} 21. Rxd6 {[%clk 0:00:35.6]} 21... Rxd6 {[%clk 0:00:04.7]} 22. Rxd6
{[%clk 0:00:36.3]} 22... f6 {[%clk 0:00:05]} 23. Ne6 {[%clk 0:00:27.5]} 23...
Bf8 {[%clk 0:00:04.4]} 24. Nxf8 {[%clk 0:00:27.5]} 24... Kxf8 {[%clk 0:00:05.1]}
25. Bf3 {[%clk 0:00:20.4]} 25... Kf7 {[%clk 0:00:04.5]} 26. a4 {[%clk
0:00:18.5]} 26... Re7 {[%clk 0:00:04.6]} 27. Rd8 {[%clk 0:00:17.5]} 27... Rc7
{[%clk 0:00:04.8]} 28. Rh8 {[%clk 0:00:13.9]} 28... b5 {[%clk 0:00:04.4]} 29.
Rh7+ {[%clk 0:00:14]} 1-0

[Event "Early-Titled-Tuesday-Blitz-April-16-2024"]
[Site "Chess.com"]
[Date "2024.04.16"]
[Round "2"]
[White "yuriydovzik"]
[Black "dvglko"]
[Result "0-1"]
[WhiteElo "2138"]
[BlackElo "2464"]
[TimeControl "180+1"]
[EndTime "8:16:58 PDT"]
[Termination "dvglko won on time"]

1. e4 {[%clk 0:02:52.1]} 1... c5 {[%clk 0:02:56.5]} 2. Nf3 {[%clk 0:02:50.2]}
2... d6 {[%clk 0:02:54.8]} 3. Bb5+ {[%clk 0:02:48.5]} 3... Nd7 {[%clk
0:02:52.3]} 4. O-O {[%clk 0:02:46.1]} 4... a6 {[%clk 0:02:49.4]} 5. Bxd7+ {[%clk
0:02:44.6]} 5... Bxd7 {[%clk 0:02:50.3]} 6. c4 {[%clk 0:02:40.6]} 6... e5 {[%clk
0:02:44.4]} 7. h3 {[%clk 0:02:37.3]} 7... g6 {[%clk 0:02:44]} 8. Nc3 {[%clk
0:02:34.7]} 8... Ne7 {[%clk 0:02:40.6]} 9. a4 {[%clk 0:02:33.1]} 9... Bg7 {[%clk
0:02:40.8]} 10. d3 {[%clk 0:02:30.6]} 10... O-O {[%clk 0:02:40.3]} 11. Nd5
{[%clk 0:02:29.8]} 11... Nxd5 {[%clk 0:02:35.6]} 12. cxd5 {[%clk 0:02:29.1]}
12... f5 {[%clk 0:02:36.5]} 13. Ng5 {[%clk 0:02:03.1]} 13... f4 {[%clk
0:02:24.5]} 14. Ne6 {[%clk 0:01:49.3]} 14... Bxe6 {[%clk 0:02:22.4]} 15. dxe6
{[%clk 0:01:47.9]} 15... Qe7 {[%clk 0:02:20.2]} 16. Qb3 {[%clk 0:01:46.5]} 16...
Rae8 {[%clk 0:02:18.4]} 17. a5 {[%clk 0:01:30.7]} 17... Qh4 {[%clk 0:02:13.1]}
18. f3 {[%clk 0:01:24.5]} 18... Qe7 {[%clk 0:02:05.2]} 19. Qd5 {[%clk
0:01:13.4]} 19... Rf6 {[%clk 0:02:02.1]} 20. b4 {[%clk 0:01:13]} 20... cxb4
{[%clk 0:01:44.4]} 21. Rb1 {[%clk 0:01:10.2]} 21... Rxe6 {[%clk 0:01:40.1]} 22.
Rxb4 {[%clk 0:01:09.6]} 22... g5 {[%clk 0:00:55]} 23. Rxb7 {[%clk 0:01:05.5]}
23... Qf6 {[%clk 0:00:55.3]} 24. Ba3 {[%clk 0:00:58.7]} 24... h5 {[%clk
0:00:52.9]} 25. Rc1 {[%clk 0:00:43.3]} 25... g4 {[%clk 0:00:40.7]} 26. Rcc7
{[%clk 0:00:41.3]} 26... Bf8 {[%clk 0:00:38.3]} 27. hxg4 {[%clk 0:00:18.6]}
27... hxg4 {[%clk 0:00:38.4]} 28. Rh7 {[%clk 0:00:16.4]} 28... Qg6 {[%clk
0:00:35.4]} 29. fxg4 {[%clk 0:00:11.3]} 29... Qxg4 {[%clk 0:00:32.6]} 30. Bxd6
{[%clk 0:00:06.5]} 30... f3 {[%clk 0:00:24.8]} 31. Rhg7+ {[%clk 0:00:02.3]}
31... Bxg7 {[%clk 0:00:22.8]} 0-1

[Event "Early-Titled-Tuesday-Blitz-April-16-2024"]
[Site "Chess.com"]
[Date "2024.04.16"]
[Round "2"]
[White "Aleksandar-Topalov"]
[Black "Bilan_Danila"]
[Result "1/2-1/2"]
[WhiteElo "2330"]
[BlackElo "2526"]
[TimeControl "180+1"]
[EndTime "8:17:03 PDT"]
[Termination "Game drawn by repetition"]

1. b3 {[%clk 0:03:00.9]} 1... d5 {[%clk 0:02:58.6]} 2. Bb2 {[%clk 0:03:00]} 2...
Nf6 {[%clk 0:02:58.8]} 3. Nf3 {[%clk 0:02:59.4]} 3... c5 {[%clk 0:02:57.6]} 4.
e3 {[%clk 0:02:58.5]} 4... Nc6 {[%clk 0:02:57.3]} 5. Bb5 {[%clk 0:02:57.8]} 5...
Qb6 {[%clk 0:02:57.4]} 6. Qe2 {[%clk 0:02:56.4]} 6... a6 {[%clk 0:02:55]} 7.
Bxc6+ {[%clk 0:02:55.7]} 7... Qxc6 {[%clk 0:02:55.9]} 8. Ne5 {[%clk 0:02:55.7]}
8... Qc7 {[%clk 0:02:52.4]} 9. O-O {[%clk 0:02:55.3]} 9... g6 {[%clk 0:02:50.8]}
10. f4 {[%clk 0:02:52.3]} 10... Bg7 {[%clk 0:02:48.6]} 11. Nc3 {[%clk
0:02:51.5]} 11... O-O {[%clk 0:02:44.2]} 12. d3 {[%clk 0:02:50.8]} 12... b5
{[%clk 0:02:37.5]} 13. a4 {[%clk 0:02:46.6]} 13... b4 {[%clk 0:02:31.1]} 14. Nd1
{[%clk 0:02:46.4]} 14... a5 {[%clk 0:02:27.7]} 15. h3 {[%clk 0:02:45.1]} 15...
Ba6 {[%clk 0:02:11.9]} 16. Nf2 {[%clk 0:02:33.9]} 16... Nd7 {[%clk 0:02:00.9]}
17. Nxd7 {[%clk 0:02:21.8]} 17... Qxd7 {[%clk 0:01:40.4]} 18. Bxg7 {[%clk
0:02:20.1]} 18... Kxg7 {[%clk 0:01:41.3]} 19. e4 {[%clk 0:02:18.4]} 19... c4
{[%clk 0:01:03.9]} 20. dxc4 {[%clk 0:02:16.8]} 20... dxc4 {[%clk 0:01:03.1]} 21.
Rfd1 {[%clk 0:02:16.8]} 21... Qc7 {[%clk 0:00:50.1]} 22. Qe3 {[%clk 0:02:12.1]}
22... Rad8 {[%clk 0:00:47.9]} 23. e5 {[%clk 0:01:43.4]} 23... Bb7 {[%clk
0:00:45.8]} 24. Qg3 {[%clk 0:01:27]} 24... Rxd1+ {[%clk 0:00:34.7]} 25. Rxd1
{[%clk 0:01:25.6]} 25... cxb3 {[%clk 0:00:34.8]} 26. cxb3 {[%clk 0:01:24.8]}
26... Rd8 {[%clk 0:00:35.2]} 27. Rxd8 {[%clk 0:01:22.9]} 27... Qxd8 {[%clk
0:00:36.1]} 28. f5 {[%clk 0:01:20.2]} 28... Qd5 {[%clk 0:00:27.4]} 29. Ng4
{[%clk 0:01:17.3]} 29... h5 {[%clk 0:00:25.5]} 30. f6+ {[%clk 0:01:16.2]} 30...
exf6 {[%clk 0:00:22.2]} 31. Nxf6 {[%clk 0:01:15.2]} 31... Qd1+ {[%clk
0:00:21.3]} 32. Kh2 {[%clk 0:01:14.7]} 32... Qe2 {[%clk 0:00:21.1]} 33. Ne8+
{[%clk 0:01:07.7]} 33... Kf8 {[%clk 0:00:19.2]} 34. Nd6 {[%clk 0:01:07.3]} 34...
Bd5 {[%clk 0:00:18.8]} 35. Qg5 {[%clk 0:01:02.4]} 35... Bxb3 {[%clk 0:00:11.3]}
36. Qd8+ {[%clk 0:00:59]} 36... Kg7 {[%clk 0:00:12]} 37. Qf6+ {[%clk 0:00:58.8]}
37... Kf8 {[%clk 0:00:10.5]} 38. Qd8+ {[%clk 0:00:58.3]} 38... Kg7 {[%clk
0:00:10.8]} 39. Qf6+ {[%clk 0:00:58.4]} 39... Kg8 {[%clk 0:00:10.5]} 40. Ne8
{[%clk 0:00:57.4]} 40... Kf8 {[%clk 0:00:09.3]} 41. Nd6 {[%clk 0:00:45.9]} 41...
Kg8 {[%clk 0:00:09.7]} 42. Ne8 {[%clk 0:00:43.5]} 42... Kf8 {[%clk 0:00:09.6]}
43. Nd6 {[%clk 0:00:43.2]} 43... Kg8 {[%clk 0:00:09.6]} 1/2-1/2

[Event "Early-Titled-Tuesday-Blitz-April-16-2024"]
[Site "Chess.com"]
[Date "2024.04.16"]
[Round "2"]
[White "Bulatova_Kamaliya"]
[Black "shirovin"]
[Result "1-0"]
[WhiteElo "2448"]
[BlackElo "2056"]
[TimeControl "180+1"]
[EndTime "8:17:03 PDT"]
[Termination "Bulatova_Kamaliya won on time"]

1. e4 {[%clk 0:03:00.9]} 1... Nf6 {[%clk 0:02:57.4]} 2. Nc3 {[%clk 0:02:58.3]}
2... d5 {[%clk 0:02:56.5]} 3. exd5 {[%clk 0:02:56.6]} 3... Nxd5 {[%clk
0:02:55.9]} 4. d4 {[%clk 0:02:55.4]} 4... Nxc3 {[%clk 0:02:53.7]} 5. bxc3 {[%clk
0:02:54.5]} 5... g6 {[%clk 0:02:34.9]} 6. Bc4 {[%clk 0:02:47.9]} 6... Bg7 {[%clk
0:02:34.6]} 7. h3 {[%clk 0:02:40.8]} 7... O-O {[%clk 0:02:33.9]} 8. Nf3 {[%clk
0:02:39.9]} 8... c5 {[%clk 0:02:33.1]} 9. O-O {[%clk 0:02:38]} 9... Nc6 {[%clk
0:02:32.5]} 10. Be3 {[%clk 0:02:10.4]} 10... Qa5 {[%clk 0:02:28.6]} 11. Qe1
{[%clk 0:01:37.7]} 11... Rd8 {[%clk 0:02:05.1]} 12. Ng5 {[%clk 0:01:17.6]} 12...
e6 {[%clk 0:01:59.8]} 13. Bd2 {[%clk 0:00:59.4]} 13... Qa3 {[%clk 0:01:14.5]}
14. d5 {[%clk 0:00:40.5]} 14... exd5 {[%clk 0:01:04.7]} 15. Bxd5 {[%clk
0:00:37.7]} 15... Ne5 {[%clk 0:00:48.1]} 16. c4 {[%clk 0:00:17]} 16... h6 {[%clk
0:00:40.9]} 17. Ne4 {[%clk 0:00:08.7]} 17... Bf5 {[%clk 0:00:30.3]} 18. Rb1
{[%clk 0:00:07.4]} 18... Nc6 {[%clk 0:00:18]} 19. Rxb7 {[%clk 0:00:05.7]} 19...
Rac8 {[%clk 0:00:07.4]} 20. Rxf7 {[%clk 0:00:04.9]} 20... Kh7 {[%clk 0:00:06.1]}
21. g4 {[%clk 0:00:04]} 21... Bxe4 {[%clk 0:00:04.7]} 22. Qxe4 {[%clk
0:00:03.6]} 22... Ne5 {[%clk 0:00:04.4]} 23. Qxe5 {[%clk 0:00:02.5]} 23... Rg8
{[%clk 0:00:01.7]} 24. Qe6 {[%clk 0:00:01.9]} 1-0

[Event "Early-Titled-Tuesday-Blitz-April-16-2024"]
[Site "Chess.com"]
[Date "2024.04.16"]
[Round "2"]
[White "Oleksandr_Bortnyk"]
[Black "ChessRespected"]
[Result "1-0"]
[WhiteElo "3036"]
[BlackElo "2624"]
[TimeControl "180+1"]
[EndTime "8:17:04 PDT"]
[Termination "Oleksandr_Bortnyk won on time"]

1. e4 {[%clk 0:03:00.9]} 1... e5 {[%clk 0:02:59.3]} 2. Nf3 {[%clk 0:02:59]} 2...
Nc6 {[%clk 0:02:59.4]} 3. Bb5 {[%clk 0:02:58.4]} 3... a6 {[%clk 0:02:59.6]} 4.
Ba4 {[%clk 0:02:58.9]} 4... b5 {[%clk 0:02:59.1]} 5. Bb3 {[%clk 0:02:58.7]} 5...
Nf6 {[%clk 0:02:59.2]} 6. Nc3 {[%clk 0:02:57.5]} 6... Bc5 {[%clk 0:02:56.9]} 7.
d4 {[%clk 0:02:55.8]} 7... Nxd4 {[%clk 0:02:51.9]} 8. Bg5 {[%clk 0:02:34.9]}
8... Nxb3 {[%clk 0:02:25.8]} 9. axb3 {[%clk 0:02:34.2]} 9... h6 {[%clk
0:02:24.9]} 10. Bxf6 {[%clk 0:02:27.7]} 10... Qxf6 {[%clk 0:01:56.4]} 11. Qd5
{[%clk 0:02:27.4]} 11... Qc6 {[%clk 0:01:52.7]} 12. Qxe5+ {[%clk 0:02:22]} 12...
Kf8 {[%clk 0:01:50.2]} 13. O-O {[%clk 0:02:20.8]} 13... d6 {[%clk 0:01:49.4]}
14. Qf4 {[%clk 0:02:14.5]} 14... Qe8 {[%clk 0:01:32.5]} 15. b4 {[%clk
0:02:08.3]} 15... Ba7 {[%clk 0:01:23.1]} 16. e5 {[%clk 0:02:05]} 16... dxe5
{[%clk 0:01:21.2]} 17. Nxe5 {[%clk 0:02:04.2]} 17... Kg8 {[%clk 0:01:19.8]} 18.
Rfe1 {[%clk 0:01:30]} 18... Be6 {[%clk 0:01:15.6]} 19. Qf3 {[%clk 0:01:29.5]}
19... Kh7 {[%clk 0:01:07.9]} 20. Ne4 {[%clk 0:01:19.3]} 20... Rf8 {[%clk
0:00:57.6]} 21. Nc5 {[%clk 0:01:13.5]} 21... Bxc5 {[%clk 0:00:56.5]} 22. bxc5
{[%clk 0:01:14.4]} 22... Qe7 {[%clk 0:00:53.3]} 23. b4 {[%clk 0:01:14.3]} 23...
Qh4 {[%clk 0:00:52.2]} 24. c3 {[%clk 0:01:11.5]} 24... Kg8 {[%clk 0:00:52.3]}
25. h3 {[%clk 0:01:01.6]} 25... Rfe8 {[%clk 0:00:52.3]} 26. Qc6 {[%clk
0:00:49.7]} 26... Qg5 {[%clk 0:00:51]} 27. Nf3 {[%clk 0:00:44.7]} 27... Qf6
{[%clk 0:00:46.1]} 28. Re3 {[%clk 0:00:42.3]} 28... Rad8 {[%clk 0:00:36.3]} 29.
Nd4 {[%clk 0:00:40]} 29... Qg5 {[%clk 0:00:28.6]} 30. Rae1 {[%clk 0:00:26.1]}
30... Bd5 {[%clk 0:00:28.7]} 31. Rxe8+ {[%clk 0:00:22.1]} 31... Kh7 {[%clk
0:00:28.7]} 32. Nf3 {[%clk 0:00:20.6]} 32... Rxe8 {[%clk 0:00:25]} 33. Nxg5+
{[%clk 0:00:20.6]} 1-0

[Event "Early-Titled-Tuesday-Blitz-April-16-2024"]
[Site "Chess.com"]
[Date "2024.04.16"]
[Round "2"]
[White "FaustinoOro"]
[Black "kachsona"]
[Result "1-0"]
[WhiteElo "2957"]
[BlackElo "2608"]
[TimeControl "180+1"]
[EndTime "8:17:07 PDT"]
[Termination "FaustinoOro won on time"]

1. Nf3 {[%clk 0:03:00.9]} 1... d5 {[%clk 0:02:55.6]} 2. d4 {[%clk 0:03:01.5]}
2... Nf6 {[%clk 0:02:54.4]} 3. c4 {[%clk 0:03:00.3]} 3... e6 {[%clk 0:02:53.6]}
4. Nc3 {[%clk 0:02:59.4]} 4... Be7 {[%clk 0:02:53.2]} 5. Bf4 {[%clk 0:02:57.2]}
5... O-O {[%clk 0:02:52]} 6. e3 {[%clk 0:02:57.7]} 6... Nbd7 {[%clk 0:02:46.2]}
7. h3 {[%clk 0:02:54.7]} 7... c6 {[%clk 0:02:41.7]} 8. cxd5 {[%clk 0:02:51.2]}
8... exd5 {[%clk 0:02:40.7]} 9. Bd3 {[%clk 0:02:51]} 9... Re8 {[%clk 0:02:40.1]}
10. O-O {[%clk 0:02:50.8]} 10... Nf8 {[%clk 0:02:40]} 11. Qc2 {[%clk 0:02:50.2]}
11... Ng6 {[%clk 0:02:36.7]} 12. Bh2 {[%clk 0:02:50.3]} 12... Bd6 {[%clk
0:02:33.9]} 13. Bxd6 {[%clk 0:02:49.8]} 13... Qxd6 {[%clk 0:02:34.3]} 14. Rab1
{[%clk 0:02:50.4]} 14... Qe7 {[%clk 0:02:28.1]} 15. b4 {[%clk 0:02:40.4]} 15...
Ne4 {[%clk 0:02:24]} 16. Ne2 {[%clk 0:02:01.2]} 16... f5 {[%clk 0:02:15.1]} 17.
b5 {[%clk 0:01:56.6]} 17... Bd7 {[%clk 0:02:10.3]} 18. bxc6 {[%clk 0:01:56]}
18... bxc6 {[%clk 0:02:10.3]} 19. Nf4 {[%clk 0:01:54.4]} 19... Nh4 {[%clk
0:01:12.5]} 20. Ne5 {[%clk 0:01:28.1]} 20... Be6 {[%clk 0:00:22.3]} 21. f3
{[%clk 0:01:04.9]} 21... Ng3 {[%clk 0:00:16.1]} 22. Rfc1 {[%clk 0:01:04.9]}
22... Rac8 {[%clk 0:00:12.5]} 23. Qf2 {[%clk 0:00:55.5]} 23... Qg5 {[%clk
0:00:12.3]} 24. Rxc6 {[%clk 0:00:54.3]} 24... Rxc6 {[%clk 0:00:11.7]} 25. Nxc6
{[%clk 0:00:55.2]} 25... Bd7 {[%clk 0:00:05.8]} 26. Ne5 {[%clk 0:00:53.6]} 26...
Ba4 {[%clk 0:00:02.4]} 27. Nxd5 {[%clk 0:00:47.8]} 27... h6 {[%clk 0:00:01.9]}
28. Bc4 {[%clk 0:00:45.2]} 28... Kh7 {[%clk 0:00:01.5]} 29. Nf7 {[%clk
0:00:44.4]} 29... Qg6 {[%clk 0:00:01.4]} 30. Nf4 {[%clk 0:00:44.9]} 30... Qc6
{[%clk 0:00:01.3]} 31. Qxg3 {[%clk 0:00:22]} 31... Qxc4 {[%clk 0:00:01.1]} 32.
Ne5 {[%clk 0:00:22.6]} 32... Qc2 {[%clk 0:00:01.1]} 33. Rb7 {[%clk 0:00:21]} 1-0

[Event "Early-Titled-Tuesday-Blitz-April-16-2024"]
[Site "Chess.com"]
[Date "2024.04.16"]
[Round "2"]
[White "arenal72"]
[Black "Zohid6"]
[Result "0-1"]
[WhiteElo "2609"]
[BlackElo "2959"]
[TimeControl "180+1"]
[EndTime "8:17:08 PDT"]
[Termination "Zohid6 won by checkmate"]

1. Nf3 {[%clk 0:03:00.9]} 1... Nf6 {[%clk 0:02:59.5]} 2. g3 {[%clk 0:03:00.6]}
2... d5 {[%clk 0:02:59.3]} 3. Bg2 {[%clk 0:03:00.7]} 3... e6 {[%clk 0:03:00]} 4.
O-O {[%clk 0:03:00.5]} 4... Be7 {[%clk 0:03:00.8]} 5. b3 {[%clk 0:02:57.8]} 5...
O-O {[%clk 0:03:01.4]} 6. Bb2 {[%clk 0:02:58]} 6... c5 {[%clk 0:02:59.3]} 7. d3
{[%clk 0:02:57.7]} 7... Nc6 {[%clk 0:02:58.9]} 8. Nbd2 {[%clk 0:02:57.9]} 8...
Nd7 {[%clk 0:02:52.1]} 9. e4 {[%clk 0:02:55.9]} 9... d4 {[%clk 0:02:51.8]} 10.
a4 {[%clk 0:02:55.2]} 10... e5 {[%clk 0:02:51.4]} 11. Bh3 {[%clk 0:02:48.5]}
11... Nf6 {[%clk 0:02:24.6]} 12. Bxc8 {[%clk 0:02:47.3]} 12... Qxc8 {[%clk
0:02:25.5]} 13. Kg2 {[%clk 0:02:46.4]} 13... Qe6 {[%clk 0:02:24.6]} 14. h3
{[%clk 0:02:43.6]} 14... a6 {[%clk 0:02:20.8]} 15. a5 {[%clk 0:02:40]} 15... Nd7
{[%clk 0:02:21.1]} 16. Nc4 {[%clk 0:02:35.3]} 16... Bd8 {[%clk 0:02:19.4]} 17.
Qe2 {[%clk 0:02:25.3]} 17... h6 {[%clk 0:02:14.2]} 18. Bc1 {[%clk 0:02:23.2]}
18... b5 {[%clk 0:02:08.6]} 19. axb6 {[%clk 0:02:21]} 19... Nxb6 {[%clk
0:02:09.1]} 20. Nxb6 {[%clk 0:02:20.2]} 20... Bxb6 {[%clk 0:02:10]} 21. Nd2
{[%clk 0:02:19.7]} 21... a5 {[%clk 0:02:07.5]} 22. Nc4 {[%clk 0:02:17.3]} 22...
Bc7 {[%clk 0:02:07.8]} 23. Bd2 {[%clk 0:02:04.7]} 23... Kh7 {[%clk 0:02:01.4]}
24. f4 {[%clk 0:02:00.6]} 24... exf4 {[%clk 0:01:59.8]} 25. gxf4 {[%clk
0:01:57.4]} 25... f5 {[%clk 0:01:59.4]} 26. e5 {[%clk 0:01:43.3]} 26... Ne7
{[%clk 0:01:55.7]} 27. Bxa5 {[%clk 0:01:19.2]} 27... Bxa5 {[%clk 0:01:53.2]} 28.
Rxa5 {[%clk 0:01:18.7]} 28... Rxa5 {[%clk 0:01:50.7]} 29. Nxa5 {[%clk
0:01:19.6]} 29... Nd5 {[%clk 0:01:51.1]} 30. Nc4 {[%clk 0:01:19.8]} 30... Ra8
{[%clk 0:01:50.9]} 31. Qf3 {[%clk 0:01:13.1]} 31... Ra2 {[%clk 0:01:39.6]} 32.
Rf2 {[%clk 0:01:13]} 32... Nb4 {[%clk 0:01:33]} 33. Re2 {[%clk 0:00:56.7]} 33...
Rxc2 {[%clk 0:01:29.9]} 34. Rxc2 {[%clk 0:00:54.8]} 34... Nxc2 {[%clk
0:01:30.8]} 35. Kf2 {[%clk 0:00:51.6]} 35... Nb4 {[%clk 0:01:30]} 36. Qb7 {[%clk
0:00:46.9]} 36... Nxd3+ {[%clk 0:01:23.5]} 37. Kf3 {[%clk 0:00:46.5]} 37... Qg6
{[%clk 0:01:21.8]} 38. Qd7 {[%clk 0:00:39.1]} 38... Qh5+ {[%clk 0:01:16.1]} 39.
Kg3 {[%clk 0:00:37.1]} 39... Ne1 {[%clk 0:01:15.4]} 40. Nd2 {[%clk 0:00:26.6]}
40... Nd3 {[%clk 0:01:01.9]} 41. Nc4 {[%clk 0:00:21.4]} 41... Nc1 {[%clk
0:00:59.9]} 42. Nd6 {[%clk 0:00:19.9]} 42... Ne2+ {[%clk 0:00:57.5]} 43. Kf2
{[%clk 0:00:20]} 43... Nxf4 {[%clk 0:00:57.7]} 44. Nxf5 {[%clk 0:00:17]} 44...
Qe2+ {[%clk 0:00:51.9]} 45. Kg3 {[%clk 0:00:17.4]} 45... Nh5+ {[%clk 0:00:41.2]}
46. Kh4 {[%clk 0:00:17.6]} 46... Qe4+ {[%clk 0:00:39.7]} 47. Kxh5 {[%clk
0:00:15]} 47... Qf3+ {[%clk 0:00:39.9]} 48. Kh4 {[%clk 0:00:14.7]} 48... Qf4+
{[%clk 0:00:40.2]} 49. Kh5 {[%clk 0:00:15.1]} 49... Qg5# {[%clk 0:00:41.1]} 0-1

[Event "Early-Titled-Tuesday-Blitz-April-16-2024"]
[Site "Chess.com"]
[Date "2024.04.16"]
[Round "2"]
[White "Gabrielian_Artur"]
[Black "HaryKane"]
[Result "1-0"]
[WhiteElo "2782"]
[BlackElo "2547"]
[TimeControl "180+1"]
[EndTime "8:17:10 PDT"]
[Termination "Gabrielian_Artur won by resignation"]

1. e4 {[%clk 0:03:00.9]} 1... d6 {[%clk 0:02:54.3]} 2. Nf3 {[%clk 0:02:59.7]}
2... g6 {[%clk 0:02:53.2]} 3. d4 {[%clk 0:02:58.5]} 3... Bg7 {[%clk 0:02:53.6]}
4. Nc3 {[%clk 0:02:58.2]} 4... c6 {[%clk 0:02:49.8]} 5. Be3 {[%clk 0:02:53.5]}
5... b5 {[%clk 0:02:48.5]} 6. Bd3 {[%clk 0:02:50.8]} 6... a5 {[%clk 0:02:46.8]}
7. h3 {[%clk 0:02:45.3]} 7... b4 {[%clk 0:02:41.4]} 8. Ne2 {[%clk 0:02:44.3]}
8... Ba6 {[%clk 0:02:38.4]} 9. O-O {[%clk 0:02:43.5]} 9... Nf6 {[%clk
0:02:34.8]} 10. a3 {[%clk 0:02:41.2]} 10... bxa3 {[%clk 0:02:29.3]} 11. Rxa3
{[%clk 0:02:40.1]} 11... O-O {[%clk 0:02:26.9]} 12. Qd2 {[%clk 0:02:38.4]} 12...
Bxd3 {[%clk 0:02:26.2]} 13. cxd3 {[%clk 0:02:38.1]} 13... Nbd7 {[%clk
0:02:22.3]} 14. Rfa1 {[%clk 0:02:36.8]} 14... Qb6 {[%clk 0:02:16]} 15. Rxa5
{[%clk 0:02:28]} 15... Rxa5 {[%clk 0:02:15.4]} 16. Rxa5 {[%clk 0:02:28]} 16...
Rb8 {[%clk 0:02:16]} 17. Ra2 {[%clk 0:02:09.6]} 17... c5 {[%clk 0:02:12]} 18.
Nc3 {[%clk 0:01:57.2]} 18... Qb3 {[%clk 0:01:58.4]} 19. dxc5 {[%clk 0:01:43]}
19... Nxc5 {[%clk 0:01:52.7]} 20. Nd4 {[%clk 0:01:37.1]} 20... Qb7 {[%clk
0:01:40.6]} 21. Ndb5 {[%clk 0:01:36.6]} 21... Nfd7 {[%clk 0:01:32.3]} 22. Qc2
{[%clk 0:00:58.7]} 22... Qc6 {[%clk 0:01:12.3]} 23. Nd4 {[%clk 0:00:48.4]} 23...
Qb7 {[%clk 0:00:53.5]} 24. Ndb5 {[%clk 0:00:47.1]} 24... Qc6 {[%clk 0:00:53.3]}
25. d4 {[%clk 0:00:47.5]} 25... Na6 {[%clk 0:00:24.8]} 26. Qa4 {[%clk
0:00:46.8]} 26... Nc7 {[%clk 0:00:19.4]} 27. Nxc7 {[%clk 0:00:47.1]} 27... Qxc7
{[%clk 0:00:20.3]} 28. Nd5 {[%clk 0:00:46.9]} 28... Qd8 {[%clk 0:00:18.2]} 29.
Bg5 {[%clk 0:00:43.8]} 29... f6 {[%clk 0:00:16.7]} 30. Be3 {[%clk 0:00:43.3]}
30... Nb6 {[%clk 0:00:15.3]} 31. Qb3 {[%clk 0:00:37.8]} 31... Nxd5 {[%clk
0:00:12.7]} 32. Qxd5+ {[%clk 0:00:37.9]} 32... Kh8 {[%clk 0:00:13.6]} 33. Ra7
{[%clk 0:00:36.3]} 33... e5 {[%clk 0:00:08.6]} 34. Qf7 {[%clk 0:00:35.9]} 34...
Qg8 {[%clk 0:00:06.1]} 35. Qd7 {[%clk 0:00:35.4]} 35... Rxb2 {[%clk 0:00:06.1]}
36. Qxd6 {[%clk 0:00:34.1]} 36... Rb1+ {[%clk 0:00:06.4]} 37. Kh2 {[%clk
0:00:34.1]} 37... exd4 {[%clk 0:00:07]} 38. Bxd4 {[%clk 0:00:34.3]} 38... Rb8
{[%clk 0:00:06.9]} 39. Bxf6 {[%clk 0:00:28.8]} 1-0